bitfinex/quotes_ETHUSD_20230904
["timestamp","ask_amount","ask_price","bid_price","bid_amount"]
[1693789126859,0.96259578,1635.3,1635.1,3.69003944]
[1693789126860,0.64173052,1635.3,1635.1,3.69003944]
[1693789127043,0.64173052,1635.3,1635.2,3.08185404]
[1693789127430,2.23520123,1635.3,1635.2,3.08185404]
[1693789127633,2.23520123,1635.3,1635.2,3.45085798]
[1693789127833,3.29751595,1635.3,1635.2,3.45085798]
[1693789128029,2.23520123,1635.3,1635.2,3.45085798]
[1693789128352,0.64173052,1635.3,1635.2,3.45085798]
[1693789128650,2.23520123,1635.3,1635.2,3.45085798]
[1693789128956,3.29751595,1635.3,1635.2,3.45085798]
[1693789129158,2.23520123,1635.3,1635.2,3.45085798]
[1693789129522,0.64173052,1635.3,1635.2,3.45085798]
[1693789131663,1.6043263,1635.4,1635.2,3.45085798]
[1693789132722,1.6043263,1635.4,1635.2,3.08185404]
[1693789134636,3.29752726,1635.4,1635.2,3.08185404]
[1693789134944,0.64063302,1635.4,1635.2,3.08185404]
[1693789135260,3.29643353,1635.4,1635.2,3.08185404]
[1693789135462,0.64063302,1635.4,1635.2,3.08185404]
[1693789135826,3.29643458,1635.4,1635.2,3.08185404]
[1693789137180,4.25738412,1635.4,1635.2,3.08185404]
[1693789137333,1.60158256,1635.4,1635.2,3.08185404]
[1693789137532,2.663923,1635.4,1635.2,3.08185404]
[1693789140173,1.70297346,1635.4,1635.2,3.08185404]
[1693789140345,0.64063302,1635.4,1635.2,3.08185404]
[1693789140746,3.29649124,1635.4,1635.2,3.08185404]
[1693789144891,1.59351511,1635.4,1635.2,3.08185404]
[1693789145181,0.64035148,1635.4,1635.2,3.08185404]
[1693789145695,3.29621415,1635.4,1635.2,3.08185404]
[1693789150481,0.64035148,1635.4,1635.2,3.08185404]
[1693789150706,1.70265835,1635.4,1635.2,3.08185404]
[1693789153285,1.70265835,1635.4,1635.2,3.39003944]
[1693789153488,1.60087871,1635.5,1635.2,3.39003944]
[1693789153786,3.29603284,1635.5,1635.3,3.08185404]
[1693789153967,4.25656007,1635.5,1635.3,3.08185404]
[1693789154168,1.60087871,1635.5,1635.3,3.08185404]
[1693789154385,1.60087871,1635.5,1635.3,3.42085798]
[1693789154588,4.25656995,1635.5,1635.3,3.42085798]
[1693789154787,1.60087871,1635.5,1635.3,3.42085798]
[1693789154994,2.66315736,1635.5,1635.3,3.42085798]
[1693789155294,4.25657579,1635.5,1635.3,3.42085798]
[1693789155453,1.60087871,1635.5,1635.4,0.3420858]
[1693789155662,3.19429269,1635.5,1635.4,3.42393984]
[1693789155959,4.25656867,1635.5,1635.4,3.42393984]
[1693789156774,4.25656867,1635.5,1635.4,3.08185404]
[1693789158500,3.29604144,1635.5,1635.4,3.08185404]
[1693789166674,4.25656867,1635.5,1635.4,3.08185404]
[1693789167009,3.29604144,1635.5,1635.4,3.08185404]
[1693789167708,4.25656867,1635.5,1635.4,3.08185404]
[1693789169574,3.61621719,1635.5,1635.4,3.08185404]
[1693789194440,4.89692016,1635.5,1635.4,3.08185404]
[1693789195900,11.06322864,1635.5,1635.4,3.08185404]
[1693789197297,12.01793273,1635.5,1635.4,3.08185404]
[1693789200936,12.02062027,1635.5,1635.4,3.08185404]
[1693789206944,13.87400633,1635.5,1635.4,3.08185404]
[1693789207159,14.96100633,1635.5,1635.4,3.08185404]
[1693789207860,13.87400633,1635.5,1635.4,3.08185404]
[1693789210154,14.96100633,1635.5,1635.4,3.08185404]
[1693789210854,12.34139629,1635.5,1635.4,3.08185404]
[1693789211156,13.62384561,1635.5,1635.4,3.08185404]
[1693789213126,12.01996553,1635.5,1635.4,3.08185404]
[1693789215876,5.85365705,1635.5,1635.4,3.08185404]
[1693789217278,4.89985327,1635.5,1635.4,3.08185404]
[1693789220084,12.01898491,1635.5,1635.4,3.08185404]
[1693789220981,12.01914689,1635.5,1635.4,3.08185404]
[1693789229192,13.10614689,1635.5,1635.4,3.08185404]
[1693789229493,14.74730959,1635.5,1635.0,3.0]
[1693789229663,0.64130014,1635.3,1635.1,3.08185404]
[1693789229863,1.70354174,1635.3,1635.1,3.08185404]
[1693789230063,0.64130014,1635.3,1635.1,3.08185404]
[1693789234997,1.60325035,1635.3,1635.1,3.08185404]
[1693789235577,0.64130014,1635.3,1635.1,3.08185404]
[1693789237406,0.64130014,1635.3,1635.1,3.69003944]
[1693789240706,3.29714302,1635.3,1635.1,3.69003944]
[1693789241016,0.64130014,1635.3,1635.1,3.69003944]
[1693789241374,3.29712602,1635.3,1635.1,3.69003944]
[1693789241576,0.64130014,1635.3,1635.1,3.69003944]
[1693789241868,3.29711873,1635.3,1635.1,3.69003944]
[1693789242071,0.64130014,1635.3,1635.1,3.69003944]
[1693789242302,1.7036196,1635.3,1635.1,3.69003944]
[1693789242504,3.29709896,1635.3,1635.1,3.69003944]
[1693789264322,4.25904917,1635.3,1635.1,3.69003944]
[1693789264506,1.60325035,1635.3,1635.1,3.69003944]
[1693789264906,4.25903758,1635.3,1635.1,3.69003944]
[1693789268131,0.64130014,1635.3,1635.1,3.69003944]
[1693789268299,1.60325035,1635.3,1635.1,3.69003944]
[1693789268502,4.259022,1635.3,1635.1,3.69003944]
[1693789270875,0.64130014,1635.3,1635.1,3.69003944]
[1693789271200,3.29706666,1635.3,1635.1,3.69003944]
[1693789271605,4.25901687,1635.3,1635.1,3.69003944]
[1693789275612,4.25901687,1635.3,1635.1,3.08185404]
[1693789286272,0.64130014,1635.2,1635.1,3.08185404]
[1693789286446,1.7036067,1635.2,1635.1,3.08185404]
[1693789286848,0.64130014,1635.2,1635.1,3.08185404]
[1693789289784,1.7036067,1635.2,1635.1,3.08185404]
[1693789293503,1.06230656,1635.2,1635.1,3.08185404]
[1693789293824,1.60325035,1635.3,1635.1,3.69003944]
[1693789294026,0.64130014,1635.3,1635.1,3.69003944]
[1693789295996,1.70356249,1635.3,1635.1,3.69003944]
[1693789296196,0.64130014,1635.3,1635.1,3.69003944]
[1693789302599,1.70356487,1635.3,1635.1,3.69003944]
[1693789302804,1.70356487,1635.3,1635.2,0.36900394]
[1693789303013,1.70356487,1635.3,1635.2,3.45085798]
[1693789318010,0.64130014,1635.3,1635.2,3.45085798]
[1693789318198,1.60325035,1635.4,1635.2,3.45085798]
[1693789318399,1.60325035,1635.4,1635.3,3.08185404]
[1693789323214,4.2588807,1635.4,1635.3,3.08185404]
[1693789333556,3.61758056,1635.4,1635.3,3.08185404]
[1693789338471,3.59876995,1635.4,1635.3,3.08185404]
[1693789344768,3.93807967,1635.4,1635.3,3.08185404]
[1693789344930,4.78493565,1635.4,1635.3,3.08185404]
[1693789345132,6.75148126,1635.4,1635.3,3.08185404]
[1693789345566,4.78493565,1635.4,1635.3,3.08185404]
[1693789347271,6.75639739,1635.4,1635.3,3.08185404]
[1693789347640,5.74787743,1635.4,1635.3,3.08185404]
[1693789349375,4.90102145,1635.4,1635.3,3.08185404]
[1693789352973,5.9090352,1635.4,1635.3,3.08185404]
[1693789353175,12.07594798,1635.4,1635.3,3.08185404]
[1693789353349,5.9090352,1635.4,1635.3,3.08185404]
[1693789354744,4.90078344,1635.4,1635.3,3.08185404]
[1693789356177,5.90891329,1635.4,1635.3,3.08185404]
[1693789356771,4.90073078,1635.4,1635.3,3.08185404]
[1693789363582,3.61828146,1635.4,1635.3,3.08185404]
[1693789371864,0.96265111,1635.4,1635.3,3.08185404]
[1693789372288,3.61828146,1635.4,1635.3,3.08185404]
[1693789372672,0.96265111,1635.4,1635.3,3.08185404]
[1693789372877,2.55602932,1635.4,1635.3,3.08185404]
[1693789373073,0.96265111,1635.4,1635.3,3.08185404]
[1693789373274,2.55602932,1635.4,1635.3,3.08185404]
[1693789373585,3.61828146,1635.4,1635.3,3.08185404]
[1693789373911,4.90073078,1635.4,1635.3,3.08185404]
[1693789386289,5.90848836,1635.4,1635.3,3.08185404]
[1693789390222,12.07523034,1635.4,1635.3,3.08185404]
[1693789391926,5.90848836,1635.4,1635.3,3.08185404]
[1693789394317,12.07520296,1635.4,1635.3,3.08185404]
[1693789394628,12.07521174,1635.4,1635.3,3.08185404]
[1693789395523,12.07520511,1635.4,1635.3,3.08185404]
[1693789395716,5.90848836,1635.4,1635.3,3.08185404]
[1693789396095,12.07521383,1635.4,1635.3,3.08185404]
[1693789396627,5.90848836,1635.4,1635.3,3.08185404]
[1693789402643,12.07519261,1635.4,1635.3,3.08185404]
[1693789418150,5.90848836,1635.4,1635.3,3.08185404]
[1693789418357,12.07520073,1635.4,1635.3,3.08185404]
[1693789418746,12.0752007,1635.4,1635.3,3.08185404]
[1693789419129,5.90848836,1635.4,1635.3,3.08185404]
[1693789419420,12.0752005,1635.4,1635.3,3.08185404]
[1693789420053,5.90848836,1635.4,1635.3,3.08185404]
[1693789420822,12.07519867,1635.4,1635.3,3.08185404]
[1693789424559,10.48182046,1635.4,1635.3,3.08185404]
[1693789424761,12.07849819,1635.4,1635.3,3.08185404]
[1693789426331,12.07849933,1635.4,1635.3,3.08185404]
[1693789428965,5.91178788,1635.4,1635.3,3.08185404]
[1693789432448,3.61887965,1635.4,1635.3,3.39003944]
[1693789432762,2.55656712,1635.4,1635.3,3.39003944]
[1693789432932,3.61887965,1635.4,1635.3,3.39003944]
[1693789433135,2.55656712,1635.4,1635.3,3.39003944]
[1693789436383,3.61887965,1635.4,1635.3,3.39003944]
[1693789436541,2.55656712,1635.4,1635.3,3.39003944]
[1693789436741,3.61887965,1635.4,1635.3,3.39003944]
[1693789436943,2.55656712,1635.4,1635.3,3.39003944]
[1693789437168,3.61887965,1635.4,1635.3,3.39003944]
[1693789437467,2.55656712,1635.4,1635.3,3.39003944]
[1693789451692,3.19837949,1635.4,1635.3,3.39003944]
[1693789451905,1.60491069,1635.4,1635.3,3.39003944]
[1693789452070,3.61887965,1635.4,1635.3,3.39003944]
[1693789452266,1.60490474,1635.4,1635.3,3.39003944]
[1693789452593,3.19837354,1635.4,1635.3,3.39003944]
[1693789452799,1.60490474,1635.4,1635.3,3.39003944]
[1693789453000,4.26068607,1635.4,1635.3,3.39003944]
[1693789453396,3.19837354,1635.4,1635.3,3.39003944]
[1693789454196,3.29758775,1635.4,1635.3,3.39003944]
[1693789454396,1.70411895,1635.4,1635.3,3.39003944]
[1693789454701,1.60490474,1635.5,1635.3,3.39003944]
[1693789454925,1.60490474,1635.5,1635.4,0.33900394]
[1693789455100,3.1981761,1635.5,1635.4,3.42085798]
[1693789455419,4.26035756,1635.5,1635.4,3.42085798]
[1693789455619,3.1981761,1635.5,1635.4,3.42085798]
[1693789456325,3.29725924,1635.5,1635.4,3.42085798]
[1693789456488,2.23507778,1635.5,1635.4,3.42085798]
[1693789456885,3.29725924,1635.5,1635.4,3.42085798]
[1693789458335,1.70398788,1635.5,1635.4,3.42085798]
[1693789458536,0.64180642,1635.5,1635.4,3.42085798]
[1693789459437,0.64180642,1635.6,1635.4,6.42085798]
[1693789459644,0.96309832,1635.7,1635.4,6.42085798]
[1693789459645,1.60490474,1635.7,1635.5,3.72393984]
[1693789459943,1.60490474,1635.7,1635.6,3.08185404]
[1693789459944,0.64180642,1635.7,1635.6,3.08185404]
[1693789460118,0.64180642,1635.7,1635.6,3.45424802]
[1693789461534,1.60490474,1635.8,1635.6,3.45424802]
[1693789462042,2.66694874,1635.8,1635.6,3.45424802]
[1693789462196,0.64180642,1635.8,1635.6,3.45424802]
[1693789462724,1.70385067,1635.8,1635.6,3.45424802]
[1693789463020,0.64180642,1635.8,1635.7,0.3454248]
[1693789463239,3.29689177,1635.8,1635.7,3.42727884]
[1693789464225,1.70384056,1635.8,1635.7,3.42727884]
[1693789469238,1.06203414,1635.8,1635.7,3.42727884]
[1693789469540,1.70384056,1635.8,1635.7,3.42727884]
[1693789469896,3.41160474,1635.9,1635.7,3.42727884]
[1693789470243,3.41160474,1635.9,1635.8,3.08185404]
[1693789470441,1.60490474,1635.9,1635.8,3.08185404]
[1693789470744,4.25997227,1635.9,1635.8,3.08185404]
[1693789484317,3.61816585,1635.9,1635.8,3.08185404]
[1693789484746,4.25846392,1635.9,1635.8,3.08185404]
[1693789485950,3.61816585,1635.9,1635.8,3.08185404]
[1693789486445,4.25849645,1635.9,1635.8,3.08185404]
[1693789489258,3.61816585,1635.9,1635.8,3.08185404]
[1693789497387,4.90236271,1635.9,1635.8,3.08185404]
[1693789499282,5.93512226,1635.9,1635.8,3.08185404]
[1693789504391,13.70535783,1635.9,1635.8,3.08185404]
[1693789505263,12.42116097,1635.9,1635.8,3.08185404]
[1693789505893,12.42115559,1635.9,1635.8,3.08185404]
[1693789515164,12.43834472,1635.9,1635.8,3.08185404]
[1693789517406,13.72250296,1635.9,1635.8,3.08185404]
[1693789520213,5.95232122,1635.9,1635.8,3.39003944]
[1693789520389,3.61800576,1635.9,1635.8,3.39003944]
[1693789520726,3.29699593,1635.9,1635.8,3.39003944]
[1693789521198,2.23499136,1635.9,1635.8,3.39003944]
[1693789521604,1.70398907,1635.9,1635.8,3.39003944]
[1693789522109,0.96299433,1636.0,1635.8,3.39003944]
[1693789522110,1.60497883,1636.0,1635.8,3.39003944]
[1693789522323,1.60497883,1636.0,1635.9,3.42085798]
[1693789522620,3.29659537,1636.0,1635.9,3.42085798]
[1693789522770,2.23475096,1636.0,1635.9,3.42085798]
[1693789523568,3.29659537,1636.0,1635.9,3.42085798]
[1693789523773,2.23475096,1636.0,1635.9,3.42085798]
[1693789525724,1.70382891,1636.0,1635.9,3.42085798]
[1693789526305,0.6419845,1636.0,1635.9,3.42085798]
[1693789530784,1.70382891,1636.0,1635.9,3.42085798]
[1693789532437,1.70762214,1636.0,1635.9,3.42085798]
[1693789532734,2.12299863,1636.0,1635.9,3.42085798]
[1693789533424,2.27876481,1636.0,1635.9,3.42085798]
[1693789535703,0.5749359,1636.0,1635.9,3.42085798]
[1693789541851,0.57072207,1636.0,1635.9,3.42085798]
[1693789542415,0.57438141,1636.0,1635.9,3.42085798]
[1693789544553,2.27822382,1636.0,1635.9,3.42085798]
[1693789548336,0.57438141,1636.0,1635.9,3.42085798]
[1693789549446,3.44937883,1636.1,1635.9,3.42085798]
[1693789550061,0.56927263,1636.0,1635.9,3.42085798]
[1693789550428,0.57290701,1636.0,1635.9,3.42085798]
[1693789555559,2.27673799,1636.0,1635.9,3.42085798]
[1693789560385,2.27673799,1636.0,1635.9,3.08185404]
[1693789561544,3.86949236,1636.0,1635.9,3.08185404]
[1693789564181,4.19050219,1636.0,1635.9,3.08185404]
[1693789565178,3.86919886,1636.0,1635.9,3.08185404]
[1693789610659,4.83219319,1636.0,1635.9,3.08185404]
[1693789611863,3.86919886,1636.0,1635.9,3.08185404]
[1693789612468,4.83219319,1636.0,1635.9,3.08185404]
[1693789614965,3.86919886,1636.0,1635.9,3.08185404]
[1693789619785,4.83219319,1636.0,1635.9,3.08185404]
[1693789620298,3.86919886,1636.0,1635.9,3.08185404]
[1693789621355,4.83219319,1636.0,1635.9,3.08185404]
[1693789621769,3.86919886,1636.0,1635.9,3.08185404]
[1693789622164,4.83219319,1636.0,1635.9,3.08185404]
[1693789623068,3.86919886,1636.0,1635.9,3.08185404]
[1693789623258,4.83219319,1636.0,1635.9,3.08185404]
[1693789624001,3.86919886,1636.0,1635.9,3.08185404]
[1693789624696,4.83219319,1636.0,1635.9,3.08185404]
[1693789625058,3.86919886,1636.0,1635.9,3.08185404]
[1693789625466,4.83219319,1636.0,1635.9,3.08185404]
[1693789628305,4.83219319,1636.0,1635.9,3.39003944]
[1693789628480,2.27644449,1636.0,1635.9,3.39003944]
[1693789629603,0.57290701,1636.0,1635.9,3.39003944]
[1693789629801,1.21459801,1636.0,1635.9,3.39003944]
[1693789630096,0.57290701,1636.0,1635.9,3.39003944]
[1693789636120,0.57290701,1636.0,1635.9,4.47703944]
[1693789636314,0.57290701,1636.0,1635.9,3.39003944]
[1693789636620,0.57290701,1636.0,1635.9,5.63719244]
[1693789649251,0.57290701,1636.0,1635.9,6.72419244]
[1693789653153,0.57290701,1636.0,1635.9,5.63719244]
[1693789669830,0.57290701,1636.0,1635.9,6.11719244]
[1693789675970,0.57290701,1636.0,1635.9,7.20419244]
[1693789680798,0.00363438,1636.0,1635.9,7.20419244]
[1693789681589,1.7154,1636.2,1635.9,7.20419244]
[1693789681792,1.7154,1636.2,1636.1,3.08185404]
[1693789682094,1.60468533,1636.3,1636.1,3.08185404]
[1693789682295,4.49012939,1636.3,1636.2,3.08185404]
[1693789682463,6.08259348,1636.3,1636.2,3.08185404]
[1693789682657,4.25879348,1636.3,1636.2,3.08185404]
[1693789683061,4.85866915,1636.3,1636.2,3.08185404]
[1693789683481,3.89567482,1636.3,1636.2,3.08185404]
[1693789683787,4.85866915,1636.3,1636.2,3.08185404]
[1693789685414,4.86234414,1636.3,1636.2,3.08185404]
[1693789697667,4.22065314,1636.3,1636.2,3.08185404]
[1693789714276,4.21993686,1636.3,1636.2,3.08185404]
[1693789718486,4.21626187,1636.3,1636.2,3.08185404]
[1693789732275,4.21626187,1636.3,1636.2,3.39003944]
[1693789734575,4.21626187,1636.3,1636.2,3.08185404]
[1693789760555,4.85803423,1636.3,1636.2,3.08185404]
[1693789760854,4.21626187,1636.3,1636.2,3.08185404]
[1693789761156,4.8580342,1636.3,1636.2,3.08185404]
[1693789761729,4.21626187,1636.3,1636.2,3.08185404]
[1693789761935,4.8580292,1636.3,1636.2,3.08185404]
[1693789762250,4.85802131,1636.3,1636.2,3.08185404]
[1693789762556,4.85802262,1636.3,1636.2,3.08185404]
[1693789763961,4.21626187,1636.3,1636.2,3.08185404]
[1693789764265,4.85801616,1636.3,1636.2,3.08185404]
[1693789764463,4.21626187,1636.3,1636.2,3.08185404]
[1693789765564,4.85800603,1636.3,1636.2,3.08185404]
[1693789765770,4.21626187,1636.3,1636.2,3.08185404]
[1693789766271,4.8580019,1636.3,1636.2,3.08185404]
[1693789767976,4.21626187,1636.3,1636.2,3.08185404]
[1693789768177,4.85800089,1636.3,1636.2,3.08185404]
[1693789773242,3.89574619,1636.3,1636.2,3.08185404]
[1693789773647,4.85800089,1636.3,1636.2,3.08185404]
[1693789773849,3.89574619,1636.3,1636.2,3.39003944]
[1693789774071,2.30326729,1636.3,1636.2,3.39003944]
[1693789774248,0.59987567,1636.3,1636.2,3.87003944]
[1693789774654,1.60399372,1636.4,1636.2,3.87003944]
[1693789774853,1.60399372,1636.4,1636.3,3.08185404]
[1693789775058,1.60399372,1636.4,1636.3,3.46885798]
[1693789775289,0.64173902,1636.4,1636.3,3.46885798]
[1693789775784,3.29562149,1636.4,1636.3,3.46885798]
[1693789776284,1.70329201,1636.4,1636.3,3.46885798]
[1693789776780,0.64173902,1636.4,1636.3,3.46885798]
[1693789778858,0.64173902,1636.5,1636.3,3.46885798]
[1693789779085,0.64173902,1636.5,1636.4,3.08185404]
[1693789779587,3.29545806,1636.5,1636.4,3.08185404]
[1693789784403,1.70322527,1636.5,1636.4,3.08185404]
[1693789788174,2.19998611,1636.5,1636.4,3.08185404]
[1693789790104,0.49676084,1636.5,1636.4,3.08185404]
[1693789815340,2.19998571,1636.5,1636.4,3.08185404]
[1693789818240,3.79221467,1636.5,1636.4,3.08185404]
[1693789825447,2.19998571,1636.5,1636.4,3.08185404]
[1693789825656,0.49676084,1636.5,1636.4,3.42873984]
[1693789832462,0.50018516,1636.5,1636.4,3.42873984]
[1693789835530,0.49676084,1636.5,1636.4,3.42873984]
[1693789837629,0.50018902,1636.5,1636.4,3.42873984]
[1693789863221,0.50018902,1636.5,1636.4,3.08185404]
[1693789902470,1.8169,1636.6,1636.4,3.08185404]
[1693789902471,2.45863334,1636.6,1636.4,3.08185404]
[1693789902635,2.45863334,1636.6,1636.5,3.08185404]
[1693789902835,5.11217167,1636.6,1636.5,3.08185404]
[1693789903035,3.29527167,1636.6,1636.5,3.08185404]
[1693789903462,3.2985463,1636.6,1636.5,3.08185404]
[1693789907778,4.26114631,1636.6,1636.5,3.08185404]
[1693789908354,4.68387692,1636.6,1636.5,3.08185404]
[1693789935838,3.72127691,1636.6,1636.5,3.08185404]
[1693789975684,2.12915391,1636.6,1636.5,3.08185404]
[1693789975886,3.72123073,1636.6,1636.5,3.08185404]
[1693789976584,3.72123058,1636.6,1636.5,3.08185404]
[1693789976773,2.12915391,1636.6,1636.5,3.08185404]
[1693789977374,3.72123013,1636.6,1636.5,3.08185404]
[1693789977776,2.12915391,1636.6,1636.5,3.08185404]
[1693790002934,2.10903391,1636.6,1636.5,3.08185404]
[1693790003671,2.10501391,1636.6,1636.5,3.08185404]
[1693790035802,2.12915178,1636.6,1636.5,3.08185404]
[1693790045301,1.0677833,1636.6,1636.5,3.08185404]
[1693790045511,2.12914905,1636.6,1636.5,3.08185404]
[1693790080479,2.12914905,1636.6,1636.5,3.39003944]
[1693790080480,0.42600524,1636.6,1636.5,3.39003944]
[1693790081834,0.42600524,1636.6,1636.5,4.59493044]
[1693790083516,0.42273061,1636.6,1636.5,4.59493044]
[1693790088456,0.101,1636.7,1636.5,4.59493044]
[1693790088644,0.101,1636.7,1636.6,3.08185404]
[1693790089556,0.10416175,1636.7,1636.6,3.08185404]
[1693790095068,0.10416175,1636.7,1636.6,3.54134708]
[1693790103252,0.50392303,1636.7,1636.6,3.54134708]
[1693790131186,0.50392303,1636.7,1636.6,3.08185404]
[1693790131889,0.10416175,1636.7,1636.6,3.08185404]
[1693790132590,0.101,1636.7,1636.6,3.08185404]
[1693790134589,0.10460199,1636.7,1636.6,3.08185404]
[1693790134819,0.64048489,1636.7,1636.6,3.08185404]
[1693790149502,0.10460199,1636.7,1636.6,3.08185404]
[1693790149704,0.62124757,1636.7,1636.6,3.08185404]
[1693790180953,2.56345546,1636.7,1636.6,3.08185404]
[1693790181154,4.25421671,1636.7,1636.6,3.08185404]
[1693790182077,5.2167324,1636.7,1636.6,3.08185404]
[1693790182278,4.25421671,1636.7,1636.6,3.08185404]
[1693790183282,3.91620164,1636.7,1636.6,3.08185404]
[1693790192000,9.31631303,1636.7,1636.6,3.08185404]
[1693790192296,0.6369513,1636.5,1636.1,30.89337407]
[1693790192461,0.6409856,1636.4,1636.2,3.08185404]
[1693790192800,1.73154993,1636.4,1636.2,3.08185404]
[1693790193094,2.2077638,1636.3,1636.2,3.08185404]
[1693790193779,2.21134741,1636.3,1636.2,3.08185404]
[1693790193957,0.50874996,1636.3,1636.2,3.08185404]
[1693790210648,4.89103216,1636.3,1636.2,3.08185404]
[1693790210915,5.21152496,1636.3,1636.2,3.08185404]
[1693790211119,6.25714371,1636.3,1636.2,3.08185404]
[1693790213403,6.89612697,1636.3,1636.2,3.08185404]
[1693790214788,4.84764857,1636.3,1636.2,3.08185404]
[1693790214989,2.20944742,1636.3,1636.2,3.08185404]
[1693790215194,0.50874996,1636.3,1636.2,3.08185404]
[1693790225230,2.20937375,1636.3,1636.2,3.08185404]
[1693790225942,2.20985518,1636.3,1636.2,3.08185404]
[1693790229139,3.80231135,1636.3,1636.2,3.08185404]
[1693790234149,4.76151047,1636.3,1636.2,3.08185404]
[1693790234946,3.80231135,1636.3,1636.2,3.08185404]
[1693790235163,3.80231135,1636.3,1636.2,3.39003944]
[1693790236626,2.20985518,1636.3,1636.2,3.39003944]
[1693790237255,1.14821604,1636.3,1636.2,3.39003944]
[1693790237459,3.80221571,1636.3,1636.2,3.39003944]
[1693790239255,2.20985518,1636.3,1636.2,3.39003944]
[1693790242338,0.50874996,1636.3,1636.2,3.39003944]
[1693790260660,0.50874996,1636.3,1636.2,3.03185404]
[1693790262294,1.57032271,1636.3,1636.2,3.03185404]
[1693790263197,2.21131274,1636.3,1636.2,3.03185404]
[1693790265393,1.14973999,1636.3,1636.2,3.03185404]
[1693790265559,3.80370643,1636.3,1636.2,3.03185404]
[1693790265763,4.59525358,1636.3,1636.2,3.03185404]
[1693790272616,5.55673863,1636.3,1636.2,3.03185404]
[1693790273019,4.59525358,1636.3,1636.2,3.03185404]
[1693790273189,5.55673863,1636.3,1636.2,3.03185404]
[1693790285527,8.44660912,1636.3,1636.2,3.03185404]
[1693790285718,10.0490842,1636.3,1636.2,3.03185404]
[1693790285895,8.76710414,1636.3,1636.2,3.03185404]
[1693790289033,10.04927302,1636.3,1636.2,3.03185404]
[1693790290438,0.63708047,1636.1,1635.6,30.41]
[1693790290642,0.64103183,1635.9,1635.7,3.08185404]
[1693790290831,1.70260458,1635.9,1635.7,3.08185404]
[1693790291031,0.54937398,1635.8,1635.7,3.08185404]
[1693790291411,6.53437957,1636.0,1635.7,3.08185404]
[1693790291622,0.55266804,1635.8,1635.7,3.08185404]
[1693790292019,0.00339327,1635.8,1635.7,3.08185404]
[1693790292776,0.65343796,1635.9,1635.7,3.08185404]
[1693790293054,0.54932621,1635.8,1635.7,3.08185404]
[1693790293419,0.65343796,1635.9,1635.7,3.08185404]
[1693790293613,0.00337266,1635.8,1635.7,3.08185404]
[1693790293842,0.55269887,1635.8,1635.7,3.08185404]
[1693790294054,0.00337266,1635.8,1635.7,3.08185404]
[1693790294630,0.65343796,1635.9,1635.7,3.08185404]
[1693790295251,0.54937765,1635.8,1635.7,3.08185404]
[1693790295457,0.65343796,1635.9,1635.7,3.08185404]
[1693790295620,0.00337523,1635.8,1635.7,3.08185404]
[1693790295819,0.55275288,1635.8,1635.7,3.08185404]
[1693790296231,0.00337523,1635.8,1635.7,3.08185404]
[1693790296658,0.65343796,1635.9,1635.7,3.08185404]
[1693790296866,0.54937765,1635.8,1635.7,3.08185404]
[1693790297278,0.65343796,1635.9,1635.7,3.08185404]
[1693790297571,0.54922332,1635.8,1635.7,3.08185404]
[1693790297728,0.55259085,1635.8,1635.7,3.08185404]
[1693790297927,0.00336753,1635.8,1635.7,3.08185404]
[1693790298668,0.65343796,1635.9,1635.7,3.08185404]
[1693790299027,0.54930049,1635.8,1635.7,3.08185404]
[1693790299444,0.65343796,1635.9,1635.7,3.08185404]
[1693790299639,0.55267187,1635.8,1635.7,3.08185404]
[1693790300079,0.00337138,1635.8,1635.7,3.08185404]
[1693790300661,0.65343796,1635.9,1635.7,3.08185404]
[1693790301056,0.54930049,1635.8,1635.7,3.08185404]
[1693790301465,0.65343796,1635.9,1635.7,3.08185404]
[1693790301770,0.55259085,1635.8,1635.7,3.08185404]
[1693790302263,0.00336753,1635.8,1635.7,3.08185404]
[1693790302668,0.65343796,1635.9,1635.7,3.08185404]
[1693790303272,0.54922332,1635.8,1635.7,3.08185404]
[1693790303572,3.8448,1636.0,1635.7,3.08185404]
[1693790303757,0.38448,1635.9,1635.7,3.08185404]
[1693790304882,0.00337192,1635.8,1635.7,3.08185404]
[1693790305656,0.38448,1635.9,1635.7,3.08185404]
[1693790306069,0.54930049,1635.8,1635.7,3.08185404]
[1693790306579,0.38448,1635.9,1635.7,3.08185404]
[1693790307051,0.54930049,1635.8,1635.7,3.08185404]
[1693790307444,0.64103183,1636.0,1635.7,3.08185404]
[1693790307799,0.00337577,1635.8,1635.7,3.08185404]
[1693790308777,1.70290997,1636.0,1635.7,3.08185404]
[1693790309278,0.54950911,1635.9,1635.7,3.08185404]
[1693790309781,0.00337063,1635.8,1635.7,3.08185404]
[1693790310680,1.70290822,1636.0,1635.7,3.08185404]
[1693790311280,0.54940623,1635.9,1635.7,3.08185404]
[1693790311681,0.00337192,1635.8,1635.7,3.08185404]
[1693790312685,1.7029066,1636.0,1635.7,3.08185404]
[1693790313050,0.54922332,1635.8,1635.7,3.08185404]
[1693790313253,0.64103183,1636.0,1635.7,3.08185404]
[1693790313584,1.70290514,1636.0,1635.7,3.08185404]
[1693790313785,0.55278599,1635.9,1635.7,3.08185404]
[1693790320056,0.55278599,1635.9,1635.8,3.08185404]
[1693790330913,1.19381782,1635.9,1635.8,3.08185404]
[1693790331374,2.25565634,1635.9,1635.8,3.08185404]
[1693790331574,1.19381782,1635.9,1635.8,3.08185404]
[1693790331773,3.84844688,1635.9,1635.8,3.08185404]
[1693790335596,4.32944634,1635.9,1635.8,3.08185404]
[1693790335800,5.29099408,1635.9,1635.8,3.08185404]
[1693790341113,4.23098451,1635.9,1635.8,3.08185404]
[1693790341316,5.29286108,1635.9,1635.8,3.08185404]
[1693790348006,5.29283938,1635.9,1635.8,3.08185404]
[1693790359135,4.33022339,1635.9,1635.8,3.08185404]
[1693790359342,5.29283938,1635.9,1635.8,3.08185404]
[1693790359641,4.33022339,1635.9,1635.8,3.08185404]
[1693790360842,5.29283938,1635.9,1635.8,3.08185404]
[1693790369383,4.65109539,1635.9,1635.8,3.08185404]
[1693790369561,4.17009593,1635.9,1635.8,3.08185404]
[1693790376684,6.61474772,1635.9,1635.8,3.08185404]
[1693790377256,5.45386682,1635.9,1635.8,3.08185404]
[1693790379196,4.17037884,1635.9,1635.8,3.08185404]
[1693790379501,5.45386682,1635.9,1635.8,3.08185404]
[1693790380162,5.06253152,1635.9,1635.8,3.08185404]
[1693790380363,7.50702469,1635.9,1635.8,3.08185404]
[1693790381391,6.61487201,1635.9,1635.8,3.08185404]
[1693790381597,4.17028175,1635.9,1635.8,3.08185404]
[1693790385803,2.57743146,1635.9,1635.8,3.08185404]
[1693790385974,4.17030051,1635.9,1635.8,3.08185404]
[1693790407329,6.61502377,1635.9,1635.8,3.08185404]
[1693790407919,5.45399058,1635.9,1635.8,3.08185404]
[1693790416233,5.45420043,1635.9,1635.8,3.08185404]
[1693790420259,5.4542423,1635.9,1635.8,3.08185404]
[1693790422331,6.61522839,1635.9,1635.8,3.08185404]
[1693790424566,5.45427104,1635.9,1635.8,3.08185404]
[1693790427063,6.61522822,1635.9,1635.8,3.08185404]
[1693790433967,8.21993859,1635.9,1635.8,3.08185404]
[1693790434168,6.61522822,1635.9,1635.8,3.08185404]
[1693790452380,6.61522822,1635.9,1635.7,3.0]
[1693790452381,7.94449415,1635.9,1635.7,3.0]